fUST/lending_fUST_20250817
["ID","MTS","AMOUNT","RATE_DAILY","PERIOD"]
[379884382,1755431453426,-480.0,0.00020696,2]
[379884384,1755431453435,-330.34491015,0.00020696,2]
[379884386,1755431453445,-480.0,0.00020696,2]
[379884388,1755431453454,-480.0,0.00020696,2]
[379884390,1755431453463,-480.0,0.00020696,2]
[379884392,1755431453473,-503.26,0.00020696,2]
[379884394,1755431453483,-480.0,0.00020696,2]
[379884396,1755431453492,-480.0,0.00020696,2]
[379884398,1755431453502,-1077.88,0.00020696,2]
[379884400,1755431453511,-480.0,0.00020696,2]
[379884402,1755431453520,-593.43,0.00020696,2]
[379884404,1755431453529,-480.0,0.00020696,2]
[379884406,1755431453539,-795.7,0.00020696,2]
[379884408,1755431453548,-480.0,0.00020696,2]
[379884410,1755431453557,-460.0,0.00020696,2]
[379884412,1755431453566,-480.0,0.00020696,2]
[379884414,1755431453575,-480.0,0.00020696,2]
[379884415,1755431453585,-480.0,0.00020696,2]
[379884418,1755431453594,-603.59,0.00020696,2]
[379884420,1755431453604,-480.0,0.00020696,2]
[379884422,1755431453613,-480.0,0.00020696,2]
[379884424,1755431453622,-480.0,0.00020696,2]
[379884426,1755431453632,-570.65,0.00020696,2]
[379884428,1755431453641,-480.0,0.00020696,2]
[379884430,1755431453650,-480.0,0.00020696,2]
[379884432,1755431453660,-9339.51,0.00020696,2]
[379884434,1755431453669,-480.0,0.00020696,2]
[379884436,1755431453680,-151.0,0.000207,4]
[379884438,1755431453689,-480.0,0.00020708,2]
[379884440,1755431453698,-480.0,0.00020708,2]
[379884442,1755431453707,-480.0,0.00020708,2]
[379884444,1755431453717,-662.9,0.00020708,2]
[379884446,1755431453726,-480.0,0.00020708,2]
[379884448,1755431453735,-480.0,0.00020708,2]
[379884450,1755431453745,-480.0,0.00020708,2]
[379884452,1755431453755,-5084.13,0.00020708,2]
[379884454,1755431453764,-1169.93,0.00020708,2]
[379884456,1755431453774,-480.0,0.00020708,2]
[379884458,1755431453784,-485.57736844,0.00020708,2]
[379884460,1755431453794,-921.6,0.00020708,2]
[379884462,1755431453805,-487.30359118,0.00020708,2]
[379884464,1755431453814,-480.0,0.00020708,2]
[379884466,1755431453824,-364.88652808,0.00020717,2]
[379884468,1755431453833,-480.0,0.00020717,2]
[379884470,1755431453843,-649.06,0.00020717,2]
[379884472,1755431453852,-583.91,0.00020717,2]
[379884482,1755431453996,-480.0,0.00020717,2]
[379884484,1755431454009,-1934.34,0.00020717,2]
[379884485,1755431454021,-480.0,0.00020717,2]
[379884487,1755431454033,-2362.3,0.00020721,2]
[379884489,1755431454042,-480.0,0.00020721,2]
[379884491,1755431454052,-334.798,0.00020748,2]
[379884493,1755431454061,-500.0,0.00020756,2]
[379884494,1755431454070,-441.6,0.00020762,2]
[379884496,1755431454080,-156.38452681,0.00020767,2]
[379884498,1755431454089,-156.3845268,0.00020767,2]
[379884500,1755431454099,-156.38452681,0.00020767,2]
[379884502,1755431454115,-480.0,0.0002078,2]
[379884504,1755431454125,-151.0,0.000208,4]
[379884507,1755431454145,-151.0,0.000208,4]
[379884508,1755431454154,-167.27283284,0.00020822,2]
[379884510,1755431454163,-206.0,0.00020836,2]
[379884512,1755431454173,-168.0,0.0002087,2]
[379884514,1755431454183,-417.6949907,0.00020877,2]
[379884516,1755431454192,-5260.54339941,0.00020878,2]
[379884518,1755431454201,-800.0,0.00020879,2]
[379884520,1755431454211,-1209.46,0.0002088,2]
[379884522,1755431454220,-480.0,0.0002088,2]
[379884525,1755431454230,-480.0,0.0002088,2]
[379884527,1755431454240,-480.0,0.0002088,2]
[379884529,1755431454249,-480.0,0.0002088,2]
[379884531,1755431454258,-604.72,0.0002088,2]
[379884532,1755431454267,-1658.55,0.0002088,2]
[379884534,1755431454277,-2406.12,0.0002088,2]
[379884536,1755431454286,-480.0,0.0002088,2]
[379884538,1755431454301,-480.0,0.0002088,2]
[379884540,1755431454310,-575.54,0.0002088,2]
[379884542,1755431454319,-500.0,0.0002088,2]
[379884544,1755431454329,-1605.16,0.0002088,2]
[379884547,1755431454338,-1584.95,0.0002088,2]
[379884548,1755431454347,-562.34,0.0002088,2]
[379884550,1755431454356,-570.77,0.00020881,2]
[379884552,1755431454365,-1015.99,0.00020881,2]
[379884554,1755431454374,-489.24,0.00020881,2]
[379884556,1755431454384,-508.19,0.00020881,2]
[379884558,1755431454393,-480.0,0.00020881,2]
[379884560,1755431454403,-545.8,0.00020881,2]
[379884563,1755431454412,-480.0,0.00020881,2]
[379884565,1755431454421,-831.87,0.00020881,2]
[379884567,1755431454431,-480.0,0.00020881,2]
[379884569,1755431454440,-826.56,0.00020881,2]
[379884571,1755431454449,-480.0,0.00020881,2]
[379884573,1755431454458,-480.0,0.00020881,2]
[379884575,1755431454467,-480.0,0.00020881,2]
[379884577,1755431454477,-599.29,0.00020881,2]
[379884579,1755431454486,-480.0,0.00020881,2]
[379884580,1755431454496,-480.0,0.00020881,2]
[379884583,1755431454505,-2876.96,0.00020881,2]
[379884585,1755431454514,-724.27,0.00020881,2]
[379884586,1755431454524,-480.0,0.00020881,2]
[379884588,1755431454533,-480.0,0.00020881,2]
[379884590,1755431454543,-480.0,0.00020881,2]
[379884592,1755431454552,-406.67869876,0.00020881,2]
[379884595,1755431454562,-480.0,0.00020881,2]
[379884597,1755431454571,-480.0,0.00020881,2]
[379884599,1755431454582,-616.52,0.00020881,2]
[379884600,1755431454592,-4039.42,0.00020881,2]
[379884603,1755431454606,-473.26741213,0.00020881,2]
[379884604,1755431454615,-480.0,0.00020881,2]
[379884606,1755431454624,-824.71,0.00020881,2]
[379884608,1755431454633,-480.0,0.00020882,2]
[379884610,1755431454643,-941.24,0.00020882,2]
[379884612,1755431454652,-980.628,0.00020887,2]
[379884614,1755431454661,-2153.0,0.00020887,2]
[379884616,1755431454670,-637.0,0.00020887,2]
[379884619,1755431454680,-151.0,0.00020887,2]
[379884621,1755431454691,-151.0,0.00020887,2]
[379884623,1755431454701,-151.0,0.000209,3]
[379884625,1755431454711,-441.6,0.00020917,3]
[379884627,1755431454720,-153.244561,0.00020919,3]
[379884629,1755431454729,-151.0,0.00020919,2]
[379884631,1755431454738,-848.882309,0.00020919,2]
[379884633,1755431454748,-848.882309,0.00020919,2]
[379884635,1755431454757,-215.71995163,0.0002092,3]
[379884637,1755431454766,-375.77065697,0.0002092,3]
[379884639,1755431454775,-160.0,0.0002092,3]
[379884641,1755431454785,-153.244561,0.0002093,20]
[379884643,1755431454795,-293.7439445,0.00020946,2]
[379884645,1755431454803,-394.28,0.00020957,3]
[379884647,1755431454812,-3440.66,0.00020958,3]
[379884649,1755431454822,-1720.32,0.00020958,3]
[379884651,1755431454831,-860.16,0.00020958,3]
[379884653,1755431454840,-430.08,0.00020958,3]
[379884655,1755431454848,-6881.32,0.00020959,3]
[379884657,1755431454858,-183.766946,0.00020959,2]
[379884659,1755431454866,-183.766946,0.00020959,2]
[379884661,1755431454876,-228.43261,0.00020959,2]
[379884663,1755431454886,-228.43261,0.00020959,2]
[379884665,1755431454895,-151.0,0.0002096,2]
[379884667,1755431454903,-417.15472785,0.0002096,3]
[379884669,1755431454913,-480.0,0.00020969,2]
[379884671,1755431454923,-940.84,0.00020969,2]
[379884673,1755431454932,-724.58,0.00020969,2]
[379884675,1755431454940,-480.0,0.00020969,2]
[379884677,1755431454950,-480.0,0.00020969,2]
[379884679,1755431454959,-6892.33,0.00020969,2]
[379884681,1755431454968,-1970.3,0.00020969,2]
[379884683,1755431454980,-860.81,0.00020969,2]
[379884685,1755431454990,-480.0,0.00020969,2]
[379884687,1755431454999,-633.39,0.00020969,2]
[379884689,1755431455008,-1707.02,0.00020969,2]
[379884691,1755431455017,-480.0,0.0002097,2]
[379884693,1755431455029,-480.0,0.0002097,2]
[379884695,1755431455038,-632.8,0.0002097,2]
[379884697,1755431455047,-246.388764,0.0002097,2]
[379884699,1755431455057,-246.388764,0.0002097,2]
[379884701,1755431455067,-480.0,0.0002097,2]
[379884703,1755431455078,-480.0,0.0002097,2]
[379884705,1755431455087,-480.0,0.0002097,2]
[379884707,1755431455096,-151.0,0.0002097,2]
[379884709,1755431455105,-480.0,0.0002097,2]
[379884711,1755431455115,-151.0,0.0002097,2]
[379884713,1755431455124,-480.0,0.0002097,2]
[379884715,1755431455133,-503.26,0.0002097,2]
[379884717,1755431455143,-480.0,0.0002097,2]
[379884719,1755431455153,-480.0,0.0002097,2]
[379884721,1755431455162,-1077.88,0.0002097,2]
[379884723,1755431455171,-480.0,0.0002097,2]
[379884725,1755431455180,-593.43,0.0002097,2]
[379884727,1755431455189,-151.0,0.0002097,2]
[379884729,1755431455198,-480.0,0.0002097,2]
[379884730,1755431455207,-795.7,0.0002097,2]
[379884731,1755431455218,-245.467757,0.0002097,2]
[379884732,1755431455227,-245.467757,0.0002097,2]
[379884733,1755431455236,-480.0,0.0002097,2]
[379884734,1755431455245,-480.0,0.0002097,2]
[379884735,1755431455254,-480.0,0.0002097,2]
[379884736,1755431455264,-480.0,0.0002097,2]
[379884737,1755431455273,-603.59,0.0002097,2]
[379884738,1755431455282,-525.17,0.0002097,2]
[379884739,1755431455292,-480.0,0.0002097,2]
[379884740,1755431455301,-480.0,0.0002097,2]
[379884741,1755431455310,-151.0,0.0002097,2]
[379884742,1755431455320,-151.0,0.0002097,2]
[379884743,1755431455329,-480.0,0.0002097,2]
[379884744,1755431455338,-480.0,0.0002097,2]
[379884745,1755431455348,-9339.51,0.0002097,2]
[379884746,1755431455357,-151.0,0.00020982,2]
[379884747,1755431455366,-151.125281,0.00020982,2]
[379884748,1755431455376,-460.0,0.00020982,2]
[379884749,1755431455386,-480.0,0.00020982,2]
[379884750,1755431455395,-480.0,0.00020982,2]
[379884751,1755431455405,-662.9,0.00020982,2]
[379884752,1755431455414,-480.0,0.00020982,2]
[379884753,1755431455424,-480.0,0.00020982,2]
[379884754,1755431455433,-480.0,0.00020982,2]
[379884755,1755431455443,-5084.13,0.00020982,2]
[379884756,1755431455453,-1169.93,0.00020982,2]
[379884757,1755431455462,-480.0,0.00020982,2]
[379884758,1755431455471,-921.6,0.00020982,2]
[379884759,1755431455481,-480.0,0.00020982,2]
[379884760,1755431455490,-167.27283284,0.00020986,2]
[379884761,1755431455499,-151.0,0.00020991,2]
[379884762,1755431455508,-480.0,0.00020991,2]
[379884763,1755431455517,-649.06,0.00020991,2]
[379884764,1755431455527,-583.91,0.00020991,2]
[379884765,1755431455536,-480.0,0.00020991,2]
[379884766,1755431455545,-1934.34,0.00020991,2]
[379884767,1755431455554,-480.0,0.00020991,2]
[379884768,1755431455563,-2362.3,0.00020995,2]
[379884769,1755431455572,-480.0,0.00020995,2]
[379884770,1755431455581,-151.0,0.00021,2]
[379884771,1755431455590,-151.0,0.00021,4]
[379884772,1755431455600,-151.0,0.00021,2]
[379884773,1755431455608,-151.0,0.00021,2]
[379884774,1755431455617,-151.65313807,0.00021,2]
[379884775,1755431455626,-151.0,0.00021,2]
[379884776,1755431455635,-151.0,0.00021,2]
[379884777,1755431455644,-500.0,0.00021,2]
[379884778,1755431455653,-151.0,0.00021,2]
[379884779,1755431455662,-201.1264393,0.00021,2]
[379884780,1755431455671,-151.0,0.00021,2]
[379884781,1755431455680,-153.244561,0.00021,14]
[379884782,1755431455690,-153.244561,0.00021,14]
[379884783,1755431455699,-153.244561,0.00021,14]
[379884784,1755431455708,-153.244561,0.00021,14]
[379884785,1755431455717,-500.0,0.00021,2]
[379884786,1755431455725,-500.0,0.00021,2]
[379884787,1755431455734,-151.0,0.00021,2]
[379884788,1755431455744,-1428.0,0.00021,2]
[379884789,1755431455753,-500.0,0.00021,2]
[379884790,1755431455762,-151.0,0.00021,2]
[379884791,1755431455771,-151.0,0.00021,2]
[379884792,1755431455780,-151.0,0.00021,2]
[379884793,1755431455790,-151.0,0.00021,2]
[379884794,1755431455799,-1000.0,0.00021021,2]
[379884795,1755431455809,-1000.0,0.00021021,2]
[379884796,1755431455818,-1000.0,0.00021021,2]
[379884797,1755431455827,-502.26575725,0.00021021,2]
[379884798,1755431455836,-502.13602325,0.00021021,2]
[379884799,1755431455845,-242.97626793,0.00021021,2]
[379884800,1755431455854,-508.40628027,0.00021021,2]
[379884801,1755431455863,-1000.0,0.00021021,2]
[379884802,1755431455872,-1000.0,0.00021021,2]
[379884803,1755431455881,-1000.0,0.00021021,2]
[379884804,1755431455891,-500.64506414,0.00021021,2]
[379884805,1755431455899,-500.0,0.00021021,2]
[379884806,1755431455908,-1000.0,0.00021021,2]
[379884807,1755431455918,-568.01389908,0.00021021,2]
[379884808,1755431455927,-500.0,0.00021021,2]
[379884809,1755431455936,-1000.0,0.00021021,2]
[379884810,1755431455945,-1000.0,0.00021021,2]
[379884811,1755431455954,-1000.0,0.00021021,2]
[379884812,1755431455963,-1000.0,0.00021021,2]
[379884813,1755431455973,-1000.0,0.00021021,2]
[379884814,1755431455987,-500.0,0.00021021,2]
[379884815,1755431455997,-1000.0,0.00021021,2]
[379884816,1755431456006,-1000.0,0.00021021,2]
[379884817,1755431456015,-1000.0,0.00021021,2]
[379884818,1755431456026,-923.64953265,0.00021021,2]
[379884819,1755431456035,-1000.88794389,0.00021021,2]
[379884820,1755431456043,-1000.0,0.00021021,2]
[379884821,1755431456052,-1000.0,0.00021021,2]
[379884822,1755431456063,-1000.8067803,0.00021021,2]
[379884823,1755431456072,-1000.0,0.00021021,2]
[379884824,1755431456081,-1000.0,0.00021021,2]
[379884825,1755431456090,-571.71256452,0.00021021,2]
[379884826,1755431456099,-1000.0,0.00021021,2]
[379884827,1755431456108,-1000.0,0.00021021,2]
[379884828,1755431456117,-1000.0,0.00021021,2]
[379884829,1755431456127,-397.54348367,0.00021021,2]
[379884830,1755431456136,-1000.0,0.00021021,2]
[379884831,1755431456145,-1000.0,0.00021021,2]
[379884832,1755431456155,-1000.0,0.00021021,2]
[379884833,1755431456165,-1000.0,0.00021021,2]
[379884834,1755431456175,-1000.0,0.00021021,2]
[379884835,1755431456185,-1000.0,0.00021021,2]
[379884836,1755431456194,-1071.95782399,0.00021021,2]
[379884837,1755431456204,-1000.0,0.00021021,2]
[379884838,1755431456213,-1000.0,0.00021021,2]
[379884839,1755431456223,-1000.0,0.00021021,2]
[379884840,1755431456232,-1002.59527639,0.00021021,2]
[379884842,1755431456242,-1000.0,0.00021021,2]
[379884847,1755431456354,-1000.0,0.00021021,2]
[379884848,1755431456366,-1000.0,0.00021021,2]
[379884849,1755431456376,-574.0813827,0.00021021,2]
[379884850,1755431456386,-153.244561,0.00021025,4]
[379884851,1755431456396,-200.0,0.0002104,2]
[379884852,1755431456405,-156.38452681,0.00021041,2]
[379884853,1755431456415,-480.0,0.00021054,2]
[379884854,1755431456425,-441.6,0.00021073,3]
[379884855,1755431456435,-500.0,0.00021095,2]
[379884856,1755431456445,-151.0,0.000211,4]
[379884857,1755431456454,-203.97,0.000211,2]
[379884858,1755431456463,-645.0,0.000211,2]
[379884859,1755431456473,-260.0,0.00021102,2]
[379884860,1755431456482,-1053.47615083,0.00021109,2]
[379884861,1755431456491,-153.244561,0.00021123,3]
[379884862,1755431456501,-653.12,0.00021132,2]
[379884863,1755431456511,-151.000001,0.00021148,2]
[379884864,1755431456520,-259.753943,0.00021148,2]
[379884865,1755431456530,-151.0,0.00021148,2]
[379884866,1755431456539,-228.432245,0.00021148,2]
[379884867,1755431456550,-228.432245,0.00021148,2]
[379884868,1755431456560,-2990.699149,0.00021148,2]
[379884869,1755431456569,-151.0,0.00021148,2]
[379884870,1755431456578,-2990.699149,0.00021148,2]
[379884871,1755431456588,-151.0,0.00021148,2]
[379884872,1755431456597,-151.0,0.00021148,2]
[379884873,1755431456607,-848.882309,0.00021148,2]
[379884874,1755431456616,-848.882309,0.00021148,2]
[379884875,1755431456626,-326.0,0.00021149,2]
[379884876,1755431456635,-326.0,0.00021149,2]
[379884877,1755431456644,-326.0,0.00021149,2]
[379884878,1755431456654,-326.0,0.00021149,2]
[379884879,1755431456663,-326.0,0.00021149,2]
[379884880,1755431456672,-326.0,0.00021149,2]
[379884881,1755431456682,-825.57944472,0.00021149,2]
[379884882,1755431456692,-326.0,0.00021149,2]
[379884883,1755431456701,-326.0,0.00021149,2]
[379884884,1755431456710,-326.0,0.00021149,2]
[379884885,1755431456720,-326.0,0.00021149,2]
[379884886,1755431456729,-326.0,0.00021149,2]
[379884887,1755431456739,-282.85812007,0.00021149,2]
[379884888,1755431456748,-1762.0,0.00021149,2]
[379884889,1755431456757,-1762.0,0.00021149,2]
[379884890,1755431456766,-1762.0,0.00021149,2]
[379884891,1755431456775,-1762.0,0.00021149,2]
[379884892,1755431456787,-1762.0,0.00021149,2]
[379884893,1755431456797,-1762.0,0.00021149,2]
[379884894,1755431456807,-246.90509545,0.00021149,2]
[379884895,1755431456817,-326.0,0.00021149,2]
[379884896,1755431456828,-326.0,0.00021149,2]
[379884897,1755431456837,-326.0,0.00021149,2]
[379884898,1755431456847,-326.0,0.00021149,2]
[379884899,1755431456856,-326.0,0.00021149,2]
[379884900,1755431456866,-326.0,0.00021149,2]
[379884901,1755431456876,-326.0,0.00021149,2]
[379884902,1755431456885,-326.0,0.00021149,2]
[379884903,1755431456895,-3000.0,0.0002115,2]
[379884904,1755431456904,-151.0,0.0002115,2]
[379884905,1755431456913,-151.0,0.0002115,2]
[379884906,1755431456922,-162.70618793,0.00021151,2]
[379884907,1755431456932,-150.06286568,0.00021151,2]
[379884908,1755431456941,-167.27283284,0.00021151,2]
[379884909,1755431456950,-218.0,0.00021152,2]
[379884910,1755431456960,-161.0584732,0.00021153,2]
[379884911,1755431456969,-13544.34305449,0.00021154,2]
[379884912,1755431456981,-1209.46,0.00021154,2]
[379884913,1755431456992,-480.0,0.00021154,2]
[379884914,1755431457001,-480.0,0.00021154,2]
[379884915,1755431457011,-480.0,0.00021154,2]
[379884916,1755431457020,-480.0,0.00021154,2]
[379884917,1755431457030,-604.72,0.00021154,2]
[379884918,1755431457040,-1658.55,0.00021154,2]
[379884919,1755431457051,-2406.12,0.00021154,2]
[379884920,1755431457062,-480.0,0.00021154,2]
[379884921,1755431457072,-480.0,0.00021154,2]
[379884922,1755431457082,-575.54,0.00021154,2]
[379884923,1755431457092,-1605.16,0.00021154,2]
[379884924,1755431457102,-1584.95,0.00021154,2]
[379884925,1755431457112,-562.34,0.00021154,2]
[379884926,1755431457122,-570.77,0.00021155,2]
[379884927,1755431457131,-1015.99,0.00021155,2]
[379884928,1755431457141,-489.24,0.00021155,2]
[379884929,1755431457150,-508.19,0.00021155,2]
[379884930,1755431457159,-480.0,0.00021155,2]
[379884931,1755431457169,-545.8,0.00021155,2]
[379884932,1755431457178,-480.0,0.00021155,2]
[379884933,1755431457188,-831.87,0.00021155,2]
[379884934,1755431457198,-480.0,0.00021155,2]
[379884935,1755431457207,-826.56,0.00021155,2]
[379884936,1755431457217,-480.0,0.00021155,2]
[379884937,1755431457226,-480.0,0.00021155,2]
[379884938,1755431457236,-480.0,0.00021155,2]
[379884939,1755431457246,-599.29,0.00021155,2]
[379884940,1755431457256,-480.0,0.00021155,2]
[379884941,1755431457265,-480.0,0.00021155,2]
[379884942,1755431457275,-2876.96,0.00021155,2]
[379884943,1755431457284,-724.27,0.00021155,2]
[379884944,1755431457294,-480.0,0.00021155,2]
[379884945,1755431457303,-480.0,0.00021155,2]
[379884946,1755431457313,-480.0,0.00021155,2]
[379884947,1755431457322,-480.0,0.00021155,2]
[379884948,1755431457331,-480.0,0.00021155,2]
[379884949,1755431457340,-616.52,0.00021155,2]
[379884950,1755431457349,-4039.42,0.00021155,2]
[379884951,1755431457359,-210.93773029,0.00021155,2]
[379884952,1755431457368,-824.71,0.00021155,2]
[379884953,1755431457377,-480.0,0.00021156,2]
[379884954,1755431457387,-941.24,0.00021156,2]
[379884955,1755431457397,-3000.0,0.0002116,2]
[379884956,1755431457409,-153.244561,0.0002116,5]
[379884957,1755431457420,-3000.0,0.0002117,2]
[379884958,1755431457431,-500.0,0.00021173,2]
[379884959,1755431457440,-500.0,0.00021173,2]
[379884960,1755431457450,-553.85251724,0.00021173,2]
[379884961,1755431457459,-500.0,0.00021173,2]
[379884962,1755431457468,-18577.78210181,0.00021174,2]
[379884963,1755431457478,-500.0,0.00021178,2]
[379884964,1755431457487,-3000.0,0.0002118,2]
[379884965,1755431457497,-151.0,0.00021186,2]
[379884966,1755431457506,-151.0,0.00021186,2]
[379884967,1755431457516,-1007.503526,0.00021186,2]
[379884968,1755431457525,-1007.503526,0.00021186,2]
[379884969,1755431457534,-153.244561,0.00021186,7]
[379884970,1755431457544,-3000.0,0.0002119,2]
[379884971,1755431457554,-151.0,0.0002119,2]
[379884972,1755431457564,-151.0,0.0002119,2]
[379884973,1755431457574,-151.0,0.0002119,2]
[379884974,1755431457583,-151.0,0.0002119,2]
[379884975,1755431457593,-245.467757,0.0002119,2]
[379884976,1755431457605,-245.467757,0.0002119,2]
[379884977,1755431457614,-151.0,0.0002119,2]
[379884978,1755431457624,-151.0,0.0002119,2]
[379884979,1755431457633,-206.0,0.00021191,2]
[379884980,1755431457642,-3000.0,0.000212,2]
[379884981,1755431457651,-151.0,0.000212,3]
[379884982,1755431457661,-183.766946,0.000212,2]
[379884983,1755431457670,-183.766946,0.000212,2]
[379884984,1755431457680,-228.43261,0.000212,2]
[379884985,1755431457690,-228.43261,0.000212,2]
[379884986,1755431457701,-3000.0,0.0002121,2]
[379884987,1755431457711,-500.0,0.00021216,2]
[379884988,1755431457720,-2200.0,0.00021216,2]
[379884989,1755431457729,-2000.0,0.00021216,2]
[379884990,1755431457738,-2000.0,0.00021216,2]
[379884991,1755431457748,-2000.0,0.00021216,2]
[379884992,1755431457757,-2000.0,0.00021216,2]
[379884994,1755431457766,-3000.0,0.0002122,2]
[379884996,1755431457776,-246.388764,0.0002122,2]
[379884998,1755431457785,-246.388764,0.0002122,2]
[379884999,1755431457795,-186.0,0.00021227,5]
[379885000,1755431457804,-441.6,0.00021228,3]
[379885001,1755431457813,-3000.0,0.0002123,2]
[379885002,1755431457822,-173.903644,0.0002123,2]
[379885003,1755431457833,-173.903644,0.0002123,2]
[379885004,1755431457842,-151.0,0.0002123,2]
[379885005,1755431457853,-151.0,0.0002123,2]
[379885006,1755431457863,-152.741225,0.0002123,2]
[379885008,1755431457871,-3000.0,0.0002124,2]
[379885009,1755431457880,-480.0,0.00021243,2]
[379885011,1755431457890,-940.84,0.00021243,2]
[379885012,1755431457899,-724.58,0.00021243,2]
[379885013,1755431457908,-480.0,0.00021243,2]
[379885015,1755431457917,-480.0,0.00021243,2]
[379885017,1755431457926,-6892.33,0.00021243,2]
[379885018,1755431457936,-1970.3,0.00021243,2]
[379885020,1755431457946,-860.81,0.00021243,2]
[379885022,1755431457955,-259.49471373,0.00021243,2]
[379885024,1755431457964,-633.39,0.00021243,2]
[379885026,1755431457974,-1707.02,0.00021243,2]
[379885028,1755431457987,-480.0,0.00021244,2]
[379885030,1755431457996,-480.0,0.00021244,2]
[379885032,1755431458008,-632.8,0.00021244,2]
[379885034,1755431458018,-480.0,0.00021244,2]
[379885035,1755431458029,-480.0,0.00021244,2]
[379885036,1755431458038,-480.0,0.00021244,2]
[379885037,1755431458048,-480.0,0.00021244,2]
[379885038,1755431458058,-480.0,0.00021244,2]
[379885039,1755431458068,-503.26,0.00021244,2]
[379885040,1755431458077,-480.0,0.00021244,2]
[379885041,1755431458086,-480.0,0.00021244,2]
[379885042,1755431458095,-1077.88,0.00021244,2]
[379885043,1755431458104,-480.0,0.00021244,2]
[379885044,1755431458113,-593.43,0.00021244,2]
[379885045,1755431458122,-480.0,0.00021244,2]
[379885046,1755431458131,-795.7,0.00021244,2]
[379885047,1755431458141,-480.0,0.00021244,2]
[379885048,1755431458151,-480.0,0.00021244,2]
[379885049,1755431458160,-480.0,0.00021244,2]
[379885050,1755431458170,-460.0,0.00021244,2]
[379885051,1755431458179,-603.59,0.00021244,2]
[379885052,1755431458188,-480.0,0.00021244,2]
[379885053,1755431458198,-480.0,0.00021244,2]
[379885054,1755431458207,-480.0,0.00021244,2]
[379885055,1755431458217,-406.07024579,0.00021244,2]
[379885056,1755431458226,-9339.51,0.00021244,2]
[379885057,1755431458235,-1680.0,0.00021249,2]
[379885058,1755431458244,-3000.0,0.0002125,2]
[379885059,1755431458254,-152.530069,0.0002125,2]
[379885060,1755431458263,-151.0,0.0002125,2]
[379885061,1755431458272,-151.0,0.0002125,2]
[379885062,1755431458281,-153.244561,0.0002125,4]
[379885063,1755431458290,-325.433859,0.0002125,2]
[379885064,1755431458299,-325.433859,0.0002125,2]
[379885065,1755431458309,-480.0,0.00021256,2]
[379885066,1755431458318,-480.0,0.00021256,2]
[379885067,1755431458329,-662.9,0.00021256,2]
[379885068,1755431458338,-480.0,0.00021256,2]
[379885069,1755431458347,-480.0,0.00021256,2]
[379885070,1755431458357,-468.50507179,0.00021256,2]
[379885071,1755431458367,-5084.13,0.00021256,2]
[379885072,1755431458377,-1169.93,0.00021256,2]
[379885073,1755431458387,-921.6,0.00021256,2]
[379885074,1755431458397,-480.0,0.00021256,2]
[379885075,1755431458406,-3000.0,0.0002126,2]
[379885076,1755431458416,-151.0,0.0002126,2]
[379885077,1755431458425,-151.0,0.0002126,2]
[379885078,1755431458434,-151.0,0.0002126,2]